bitfinex/quotes_BTCUSD_20220211
["timestamp","ask_amount","ask_price","bid_price","bid_amount"]
[1644581101958,0.157744,43310.0,43309.0,8.652e-05]
[1644581102558,0.157744,43310.0,43309.0,0.05188652]
[1644581102559,0.1,43310.0,43309.0,0.05188652]
[1644581102787,0.0981,43310.0,43309.0,0.05188652]
[1644581102986,0.00070148,43320.0,43309.0,0.05188652]
[1644581102987,0.00070148,43320.0,43312.0,0.057719]
[1644581103188,0.173184,43333.0,43313.0,0.3518]
[1644581103189,0.27622313,43333.0,43313.0,0.3518]
[1644581103388,0.50083,43336.0,43326.0,0.39814173]
[1644581103389,0.05771239,43334.0,43326.0,0.39814173]
[1644581103584,0.05771239,43334.0,43327.0,0.36753047]
[1644581103785,0.26149577,43335.0,43327.0,0.05188652]
[1644581103786,0.115426,43335.0,43327.0,0.05188652]
[1644581103985,0.44311,43336.0,43326.0,0.39814173]
[1644581104187,0.44311,43336.0,43327.0,0.02175222]
[1644581104488,0.05771,43333.0,43327.0,0.25175222]
[1644581104785,0.33662026,43330.0,43327.0,0.25175222]
[1644581104987,0.00051355,43333.0,43329.0,0.057711]
[1644581105185,0.00051355,43333.0,43329.0,0.05779753]
[1644581105386,0.00051355,43333.0,43329.0,0.33331878]
[1644581105585,0.55853219,43336.0,43329.0,0.33331878]
[1644581105785,0.00070182,43333.0,43329.0,0.33331878]
[1644581105987,0.327592,43333.0,43329.0,0.33331878]
[1644581106430,0.427592,43333.0,43329.0,0.33331878]
[1644581106630,0.42689018,43333.0,43329.0,0.33331878]
[1644581106831,0.54231348,43333.0,43329.0,0.33331878]
[1644581107034,0.115432,43332.0,43329.0,0.05779753]
[1644581108232,0.04220247,43329.0,43327.0,0.25175222]
[1644581108631,0.09991847,43329.0,43327.0,0.25175222]
[1644581109232,0.09991847,43329.0,43328.0,0.057716]
[1644581109931,0.09991847,43329.0,43328.0,0.33892386]
[1644581111488,0.14991847,43329.0,43328.0,0.057716]
[1644581111688,0.14991847,43329.0,43325.0,0.48209522]
[1644581111689,0.26291731,43329.0,43325.0,0.2654101]
[1644581111988,0.26291731,43329.0,43326.0,0.0518]
[1644581112589,100.09748333,43329.0,43326.0,0.0518]
[1644581112789,100.09748333,43329.0,43326.0,0.109518]
[1644581112790,100.04220247,43329.0,43326.0,0.109518]
[1644581115433,100.04220247,43329.0,43326.0,0.00389585]
[1644581115834,100.04220247,43329.0,43327.0,0.0518]
[1644581116033,100.04220247,43329.0,43328.0,0.35197893]
[1644581116234,100.04220247,43329.0,43328.0,0.40377893]
[1644581116433,100.04220247,43329.0,43328.0,0.50377893]
[1644581117700,100.04220247,43329.0,43328.0,0.209502]
[1644581117892,100.04220247,43329.0,43328.0,0.109502]
[1644581118393,100.04220247,43329.0,43328.0,0.62288084]
[1644581118593,100.04220247,43329.0,43328.0,1.27008084]
[1644581118791,100.04220247,43329.0,43328.0,1.37008084]
[1644581120395,100.04220247,43329.0,43328.0,1.086702]
[1644581120799,100.04220247,43329.0,43328.0,0.387702]
[1644581120800,100.11679837,43329.0,43328.0,0.387702]
[1644581121198,100.11679837,43329.0,43328.0,0.287702]
[1644581121433,100.11679837,43329.0,43328.0,0.387702]
[1644581121734,100.04220247,43329.0,43328.0,0.387702]
[1644581122335,100.04220247,43329.0,43328.0,0.287702]
[1644581122538,100.04220247,43329.0,43328.0,0.387702]
[1644581122935,100.11182672,43329.0,43328.0,0.387702]
[1644581123736,100.11182672,43329.0,43328.0,0.287702]
[1644581123936,100.11182672,43329.0,43328.0,0.387702]
[1644581124436,0.65,43328.0,43325.0,0.173118]
[1644581125040,0.65,43328.0,43326.0,0.057709]
[1644581126786,0.91783497,43327.0,43325.0,0.15241083]
[1644581126985,0.91783497,43327.0,43325.0,0.04152976]
[1644581126986,0.65,43327.0,43325.0,0.04152976]
[1644581127185,0.65,43327.0,43326.0,0.057709]
[1644581127386,0.35,43326.0,43325.0,0.04152976]
[1644581127590,0.28178292,43320.0,43317.0,0.173148]
[1644581127788,100.04271638,43329.0,43316.0,0.45176664]
[1644581127986,100.04271638,43329.0,43317.0,0.005]
[1644581128385,100.04220247,43329.0,43317.0,0.005]
[1644581128586,100.04220247,43329.0,43320.0,0.1]
[1644581128587,0.00070252,43325.0,43320.0,0.1]
[1644581128788,0.00070252,43325.0,43322.0,0.230837]
[1644581129033,0.25677866,43324.0,43322.0,0.230837]
[1644581129234,0.00070252,43325.0,43322.0,0.230837]
[1644581129636,100.04220247,43329.0,43322.0,0.460837]
[1644581129835,0.00070252,43326.0,43322.0,0.460837]
[1644581130033,0.00070252,43326.0,43323.0,0.36745151]
[1644581130236,0.00070252,43326.0,43323.0,0.42516051]
[1644581130433,0.25645123,43325.0,43323.0,0.42516051]
[1644581131337,0.00070252,43326.0,43324.0,0.1018]
[1644581131536,0.00070252,43326.0,43324.0,0.159499]
[1644581131738,0.00070252,43326.0,43325.0,0.052699]
[1644581131937,100.04220247,43329.0,43325.0,0.104499]
[1644581132339,0.00070252,43327.0,43325.0,0.104499]
[1644581132536,0.30315281,43326.0,43325.0,0.104499]
[1644581132792,0.30315281,43326.0,43322.0,0.05]
[1644581132985,0.30315281,43326.0,43323.0,0.0518]
[1644581133186,0.30315281,43326.0,43324.0,0.0518]
[1644581133385,0.30385533,43326.0,43325.0,0.057699]
[1644581133586,0.30385533,43326.0,43316.0,0.005]
[1644581133786,0.30385533,43326.0,43321.0,0.005]
[1644581133985,0.00070252,43326.0,43323.0,0.6472]
[1644581134187,100.04220247,43329.0,43325.0,0.005]
[1644581134386,100.04220247,43329.0,43327.0,0.05769]
[1644581134687,100.04220247,43329.0,43328.0,0.10948937]
[1644581134887,100.04220247,43329.0,43328.0,0.75668937]
[1644581135086,100.04220247,43329.0,43328.0,0.07133483]
[1644581135290,0.25,43328.0,43316.0,0.173079]
[1644581135486,0.25,43328.0,43320.0,0.3703484]
[1644581135687,100.04220247,43329.0,43320.0,0.7703484]
[1644581135888,100.04220247,43329.0,43325.0,0.115379]
[1644581136089,100.04220247,43329.0,43327.0,0.50399261]
[1644581136287,100.04220247,43329.0,43328.0,0.0518]
[1644581137337,99.69606147,43329.0,43328.0,0.10949439]
[1644581138536,99.7643445,43329.0,43328.0,0.10949439]
[1644581139137,99.69606147,43329.0,43328.0,0.10949439]
[1644581141189,99.69606147,43329.0,43328.0,0.33949439]
[1644581141390,99.69606147,43329.0,43328.0,0.43949439]
[1644581142193,99.75968893,43329.0,43328.0,0.43949439]
[1644581143291,99.69606147,43329.0,43328.0,0.43949439]
[1644581143791,99.69408288,43329.0,43328.0,0.43949439]
[1644581144939,99.69408288,43329.0,43328.0,0.12839023]
[1644581145240,99.69408288,43329.0,43328.0,0.18608462]
[1644581146039,99.69408288,43329.0,43328.0,0.38017674]
[1644581146239,99.69408288,43329.0,43328.0,0.48197674]
[1644581146639,99.69408288,43329.0,43328.0,0.63967113]
[1644581147039,99.68658288,43329.0,43328.0,0.63967113]
[1644581148594,99.68658288,43329.0,43328.0,0.69735913]
[1644581148595,99.34044888,43329.0,43328.0,0.69735913]
[1644581148789,99.34044888,43329.0,43328.0,0.63967113]
[1644581148992,99.34044888,43329.0,43328.0,0.38150132]
[1644581149189,98.99436388,43329.0,43328.0,0.1]
[1644581149390,98.99436388,43329.0,43327.0,1.13165103]
[1644581149590,98.64825788,43329.0,43326.0,0.173086]
[1644581149789,98.64825788,43329.0,43327.0,0.41307583]
[1644581150192,98.30213988,43329.0,43327.0,0.57077183]
[1644581150493,98.30213988,43329.0,43328.0,0.230769]
[1644581150495,97.39595088,43329.0,43328.0,0.230769]
[1644581150698,96.70371088,43329.0,43327.0,0.12039791]
[1644581150892,96.70371088,43329.0,43328.0,0.40639108]
[1644581151092,96.35760488,43329.0,43328.0,0.40639108]
[1644581151292,96.01147788,43329.0,43328.0,0.40639108]
[1644581151554,96.01147788,43329.0,43328.0,1.28436008]
[1644581151752,95.66535888,43329.0,43328.0,1.34204649]
[1644581152152,95.66535888,43329.0,43328.0,1.39204649]
[1644581152451,95.31924188,43329.0,43328.0,1.49204649]
[1644581152752,95.31924188,43329.0,43328.0,1.08745541]
[1644581152951,95.31924188,43329.0,43328.0,1.38796227]
[1644581152952,94.97312488,43329.0,43328.0,1.38796227]
[1644581153451,94.62700688,43329.0,43328.0,1.38796227]
[1644581153653,94.62700688,43329.0,43328.0,1.88796227]
[1644581153852,94.28088888,43329.0,43328.0,1.88796227]
[1644581154256,94.28088888,43329.0,43328.0,1.93796227]
[1644581154456,93.93477688,43329.0,43328.0,1.93796227]
[1644581155057,93.58866488,43329.0,43328.0,1.93796227]
[1644581155290,93.58866488,43329.0,43328.0,1.59063076]
[1644581155796,93.24254388,43329.0,43328.0,1.76371476]
[1644581155993,93.24254388,43329.0,43328.0,1.87908617]
[1644581156189,92.89643388,43329.0,43328.0,1.87908617]
[1644581156594,92.89643388,43329.0,43328.0,1.93088617]
[1644581156797,92.55032288,43329.0,43328.0,1.93088617]
[1644581157191,92.20421088,43329.0,43328.0,1.98088617]
[1644581157391,92.20421088,43329.0,43328.0,1.48088617]
[1644581157791,91.85809888,43329.0,43328.0,1.48088617]
[1644581158192,92.20087439,43329.0,43328.0,1.48088617]
[1644581158398,91.51199288,43329.0,43328.0,1.48096544]
[1644581159043,91.16588588,43329.0,43328.0,1.48096544]
[1644581159443,90.81977188,43329.0,43328.0,1.98096544]
[1644581160044,90.47366988,43329.0,43328.0,1.98096544]
[1644581160543,90.12756388,43329.0,43328.0,1.98096544]
[1644581161146,89.78145788,43329.0,43328.0,2.16505689]
[1644581161546,89.43534588,43329.0,43328.0,2.16505689]
[1644581161950,89.43534588,43329.0,43328.0,1.98096544]
[1644581162148,89.08924788,43329.0,43328.0,2.16505767]
[1644581162548,88.74314688,43329.0,43328.0,2.16505767]
[1644581162793,88.68546488,43329.0,43328.0,2.18502778]
[1644581163199,88.33937288,43329.0,43328.0,2.18502778]
[1644581163597,87.99328088,43329.0,43328.0,2.18502778]
[1644581163794,87.99328088,43329.0,43328.0,2.24271078]
[1644581164295,87.64717588,43329.0,43328.0,2.24271078]
[1644581164495,87.64717588,43329.0,43328.0,2.18502778]
[1644581164696,87.30107388,43329.0,43328.0,2.18502778]
[1644581164895,87.30107388,43329.0,43328.0,2.24271078]
[1644581165095,86.93293242,43329.0,43328.0,2.44685949]
[1644581165294,86.93293242,43329.0,43328.0,2.76178578]
[1644581165295,86.43211443,43329.0,43328.0,2.76178578]
[1644581165495,86.41538244,43329.0,43328.0,2.76178578]
[1644581165695,85.70430137,43329.0,43328.0,2.76178578]
[1644581165897,85.63989414,43329.0,43328.0,2.76178578]
[1644581166201,85.29382714,43329.0,43328.0,2.76178578]
[1644581166446,84.94773014,43329.0,43328.0,2.76178578]
[1644581166844,84.60162314,43329.0,43328.0,2.76178578]
[1644581167245,84.25552314,43329.0,43328.0,2.76178578]
[1644581167845,83.90944814,43329.0,43328.0,2.76178578]
[1644581168047,83.85176814,43329.0,43328.0,2.76178578]
[1644581168247,83.72821482,43329.0,43328.0,2.76178578]
[1644581168448,83.38213782,43329.0,43328.0,2.76178578]
[1644581168854,80.3044511,43329.0,43328.0,4.42689059]
[1644581169048,80.3044511,43329.0,43328.0,4.44989059]
[1644581169251,80.3044511,43329.0,43328.0,4.31169059]
[1644581169449,79.9583781,43329.0,43328.0,4.31169059]
[1644581169650,79.9007001,43329.0,43328.0,4.31169059]
[1644581169849,79.5546341,43329.0,43328.0,4.31169059]
[1644581170200,79.2085611,43329.0,43328.0,4.31169059]
[1644581170696,79.2085611,43329.0,43328.0,2.60069355]
[1644581170697,78.8048101,43329.0,43328.0,2.60069355]
[1644581170896,78.4587541,43329.0,43328.0,2.60069355]
[1644581171096,78.1126771,43329.0,43328.0,2.60069355]
[1644581171498,78.1126771,43329.0,43328.0,2.73889355]
[1644581171499,78.09204682,43329.0,43328.0,2.73889355]
[1644581171697,77.68706093,43329.0,43328.0,2.73889355]
[1644581172098,77.32730813,43329.0,43328.0,2.73889355]
[1644581172401,76.09630324,43329.0,43328.0,4.45565696]
[1644581172597,74.75663377,43329.0,43328.0,4.45565696]
[1644581172797,74.35294877,43329.0,43328.0,4.45565696]
[1644581172997,74.24687714,43329.0,43328.0,4.45565696]
[1644581173199,73.90088214,43329.0,43328.0,4.45565696]
[1644581173398,73.43536903,43329.0,43328.0,4.45565696]
[1644581173599,72.97402303,43329.0,43328.0,4.45565696]
[1644581173800,72.62801603,43329.0,43328.0,4.45565696]
[1644581174053,72.57034903,43329.0,43328.0,4.45565696]
[1644581174251,72.22434603,43329.0,43328.0,4.45565696]
[1644581174451,71.87834303,43329.0,43328.0,4.45565696]
[1644581174653,71.87834303,43329.0,43328.0,3.32875215]
[1644581174654,71.41699203,43329.0,43328.0,3.32875215]
[1644581174852,71.41699203,43329.0,43328.0,3.14467838]
[1644581175254,71.01329203,43329.0,43328.0,3.14467838]
[1644581175454,70.55219903,43329.0,43328.0,3.32874444]
[1644581175654,70.20617803,43329.0,43328.0,4.85564925]
[1644581176255,69.86015903,43329.0,43328.0,5.04837711]
[1644581176459,69.28527775,43329.0,43328.0,7.15473288]
[1644581176660,68.93927975,43329.0,43328.0,7.15473288]
[1644581176854,68.59327775,43329.0,43328.0,7.15473288]
[1644581177055,68.18731476,43329.0,43328.0,7.15473288]
[1644581177255,67.70924774,43329.0,43328.0,7.15473288]
[1644581177556,31.11697835,43329.0,43328.0,7.36551154]
[1644581177803,31.10182222,43329.0,43328.0,7.18144548]
[1644581178002,30.06391739,43329.0,43328.0,7.18144548]
[1644581178205,26.90396902,43329.0,43328.0,7.20293099]
[1644581178404,24.39279365,43329.0,43328.0,13.34542487]
[1644581178704,24.39279365,43329.0,43328.0,12.7255543]
[1644581178705,22.46105649,43329.0,43328.0,12.7255543]
[1644581178903,21.8517355,43329.0,43328.0,11.52246611]
[1644581179103,21.8517355,43329.0,43328.0,12.01138538]
[1644581179104,20.9868335,43329.0,43328.0,12.01138538]
[1644581179306,20.9868335,43329.0,43328.0,11.62561138]
[1644581179505,20.9868335,43329.0,43328.0,5.60154128]
[1644581179506,20.6408495,43329.0,43328.0,5.60154128]
[1644581179705,20.6408495,43329.0,43328.0,4.85931294]
[1644581179904,20.6408495,43329.0,43328.0,4.80931294]
[1644581180105,18.93669232,43329.0,43328.0,4.44698994]
[1644581180603,18.59061232,43329.0,43328.0,4.44698994]
[1644581180804,12.02298279,43329.0,43328.0,4.58518994]
[1644581181005,11.83118202,43329.0,43328.0,4.58518994]
[1644581181202,11.83118202,43329.0,43328.0,4.44698994]
[1644581181203,11.44924335,43329.0,43328.0,4.44698994]
[1644581181447,11.44924335,43329.0,43328.0,1.72493627]
[1644581182746,11.44924335,43329.0,43328.0,1.77493627]
[1644581182946,11.44924335,43329.0,43328.0,1.87493627]
[1644581183948,11.10313835,43329.0,43328.0,1.87493627]
[1644581185396,10.75703635,43329.0,43328.0,1.87493627]
[1644581185797,10.41093935,43329.0,43328.0,1.97493627]
[1644581186597,10.06484435,43329.0,43328.0,1.97493627]
[1644581187498,9.71875535,43329.0,43328.0,1.97493627]
[1644581187698,9.71875535,43329.0,43328.0,2.07028228]
[1644581187898,9.37266635,43329.0,43328.0,2.07028228]
[1644581188499,9.02657835,43329.0,43328.0,2.07028228]
[1644581188947,9.02657835,43329.0,43328.0,2.26014595]
[1644581189146,9.02657835,43329.0,43328.0,2.31014595]
[1644581189147,8.68050835,43329.0,43328.0,2.31014595]
[1644581189451,3.23274782,43329.0,43328.0,2.44834595]
[1644581189655,2.82900282,43329.0,43328.0,3.03786895]
[1644581190049,2.48293282,43329.0,43328.0,3.03786895]
[1644581190648,2.13683982,43329.0,43328.0,3.03786895]
[1644581190850,2.13683982,43329.0,43328.0,3.09554495]
[1644581192701,2.13683982,43329.0,43328.0,2.95734495]
[1644581193992,2.13683982,43329.0,43328.0,2.86199894]
[1644581194492,2.13562603,43329.0,43328.0,2.86199894]
[1644581194696,2.18562603,43329.0,43328.0,2.85621411]
[1644581194898,2.18562603,43329.0,43328.0,2.00901411]
[1644581196293,2.18562603,43329.0,43328.0,2.20901411]
[1644581196543,2.18562603,43329.0,43328.0,1.70721411]
[1644581196744,2.18562603,43329.0,43328.0,1.52313527]
[1644581197946,2.18562603,43329.0,43328.0,1.02313527]
[1644581199548,2.18562603,43329.0,43328.0,1.20724292]
[1644581200804,2.18562603,43329.0,43328.0,1.25724292]
[1644581201003,2.18562603,43329.0,43328.0,1.15724292]
[1644581202504,2.18562603,43329.0,43328.0,1.10724292]
[1644581203804,2.18562603,43329.0,43328.0,1.05724292]
[1644581204052,2.18562603,43329.0,43328.0,0.87313527]
[1644581204253,2.18562603,43329.0,43328.0,1.05724155]
[1644581204653,2.18562603,43329.0,43328.0,1.10724155]
[1644581204853,2.18562603,43329.0,43328.0,1.15724155]
[1644581205053,2.18562603,43329.0,43328.0,1.25724155]
[1644581207254,2.18562603,43329.0,43328.0,1.75724155]
[1644581208696,2.17212691,43329.0,43328.0,1.75724155]
[1644581209497,2.22212691,43329.0,43328.0,1.75724155]
[1644581209700,2.22212691,43329.0,43328.0,1.60724155]
[1644581209898,2.22212691,43329.0,43328.0,1.70724155]
[1644581210099,2.22212691,43329.0,43328.0,0.86486155]
[1644581210300,2.22212691,43329.0,43328.0,0.72006155]
[1644581210508,0.14972323,43325.0,43321.0,0.18410628]
[1644581210698,0.14972323,43325.0,43320.0,0.023]
[1644581210699,0.31737895,43321.0,43320.0,0.023]
[1644581211548,0.73307143,43321.0,43320.0,0.023]
[1644581211748,0.64755909,43321.0,43320.0,0.023]
[1644581211949,0.64755909,43321.0,43320.0,0.078716]
[1644581213157,1.0,43320.0,43317.0,0.0011]
[1644581213451,0.1,43318.0,43317.0,0.0011]
[1644581213651,0.1,43318.0,43317.0,0.058819]
[1644581213884,0.05,43318.0,43317.0,0.058819]
[1644581214650,0.1,43318.0,43317.0,0.058819]
[1644581216895,0.05,43318.0,43317.0,0.058819]
[1644581217095,0.1,43318.0,43317.0,0.058819]
[1644581218198,0.05,43318.0,43317.0,0.058819]
[1644581218395,0.1,43318.0,43317.0,0.05866111]
[1644581218594,0.05,43318.0,43317.0,0.05866111]
[1644581218795,0.1,43318.0,43317.0,0.05866111]
[1644581221947,0.105,43318.0,43317.0,0.05866111]
[1644581222346,0.105,43318.0,43317.0,0.28866111]
[1644581225298,0.105,43318.0,43317.0,0.28311111]
[1644581225905,0.055,43318.0,43317.0,0.28311111]
[1644581227346,0.055,43318.0,43317.0,0.68311111]
[1644581229147,0.055,43318.0,43317.0,0.28311111]
[1644581232796,0.055,43318.0,43317.0,0.38491111]
[1644581233294,0.055,43318.0,43317.0,0.53491111]
[1644581233495,0.055,43318.0,43317.0,0.33491111]
[1644581233496,0.105,43318.0,43317.0,0.33491111]
[1644581233698,0.45472323,43318.0,43317.0,0.28311111]
[1644581233959,0.055,43318.0,43317.0,0.28311111]
[1644581235756,0.20472323,43318.0,43317.0,0.28311111]
[1644581238699,0.055,43318.0,43317.0,0.28311111]
[1644581238899,0.20448809,43318.0,43317.0,0.28311111]
[1644581240905,0.83057382,43318.0,43317.0,0.28311111]
[1644581244856,0.9,43316.0,43315.0,0.00110465]
[1644581245055,0.9,43316.0,43309.0,0.00363068]
[1644581245056,0.33118617,43311.0,43309.0,0.0011]
[1644581245300,0.38892117,43311.0,43309.0,0.00363068]
[1644581245501,0.14948809,43310.0,43309.0,0.00363068]
[1644581245699,0.19948809,43310.0,43309.0,0.00363068]
[1644581246099,0.25722509,43310.0,43309.0,0.057737]
[1644581246299,0.31496209,43310.0,43309.0,0.057737]
[1644581246905,0.51496209,43310.0,43307.0,0.0001895]
[1644581247302,0.915475,43309.0,43306.0,0.05774]
[1644581247501,0.28180709,43307.0,43306.0,0.05774]
[1644581247702,0.35,43305.0,43302.0,0.00832464]
[1644581247901,0.19948809,43303.0,43302.0,0.00832464]
[1644581248702,0.50087433,43303.0,43302.0,0.00832464]
[1644581248947,0.50087433,43303.0,43301.0,0.1293032]
[1644581248948,0.3,43302.0,43301.0,0.1293032]
[1644581249349,0.3,43302.0,43300.0,25.0023]
[1644581249550,0.3,43302.0,43300.0,25.0035404]
[1644581249751,0.5,43302.0,43300.0,25.0035404]
[1644581249949,0.2,43302.0,43300.0,24.6569604]
[1644581250152,0.25774664,43302.0,43300.0,24.6569604]
[1644581250551,0.14948809,43301.0,43300.0,24.3104814]
[1644581250752,0.00477267,43301.0,43300.0,24.34453987]
[1644581250951,0.00477267,43301.0,43300.0,24.40228687]
[1644581251153,0.31549164,43302.0,43300.0,24.40228687]
[1644581251353,0.31549164,43302.0,43301.0,0.37902149]
[1644581251554,0.31549164,43302.0,43300.0,24.71319142]
[1644581251752,0.05,43301.0,43300.0,24.71319142]
[1644581251954,0.05,43301.0,43300.0,24.73783112]
[1644581252156,0.31549164,43302.0,43300.0,24.73783112]
[1644581252354,0.05,43301.0,43300.0,24.71319142]
[1644581252553,0.05,43301.0,43300.0,24.73783134]
[1644581253199,0.05,43301.0,43300.0,24.39286832]
[1644581253802,0.05,43301.0,43300.0,24.73783445]
[1644581254403,0.11549164,43302.0,43300.0,24.49286832]
[1644581254609,0.0202277,43302.0,43301.0,0.42463992]
[1644581254810,0.0202277,43302.0,43301.0,0.99098564]
[1644581255003,0.0202277,43302.0,43301.0,0.17643992]
[1644581255404,0.00070274,43311.0,43301.0,1.77734015]
[1644581255604,0.00070274,43311.0,43309.0,0.4]
[1644581255804,0.00070274,43311.0,43310.0,0.07643992]
[1644581255805,0.17315,43311.0,43310.0,0.07643992]
[1644581256003,0.17315,43311.0,43310.0,0.07143992]
[1644581256004,0.1738528,43311.0,43310.0,0.07143992]
[1644581256201,0.1738528,43311.0,43310.0,0.12143992]
[1644581256855,0.0584198,43311.0,43310.0,0.17915292]
[1644581257050,0.057717,43311.0,43310.0,0.17915292]
[1644581257250,0.057717,43311.0,43310.0,0.58114344]
[1644581257454,0.057717,43311.0,43310.0,0.17915292]
[1644581257651,0.057717,43311.0,43310.0,0.27915292]
[1644581258853,0.057717,43311.0,43310.0,0.57353662]
[1644581259253,0.05823247,43313.0,43310.0,0.67353662]
[1644581259453,0.057716,43313.0,43310.0,0.6538967]
[1644581259655,0.05841943,43313.0,43310.0,0.6538967]
[1644581260056,0.05841943,43313.0,43310.0,0.259513]
[1644581260302,0.05841943,43313.0,43310.0,0.159513]
[1644581260502,0.057716,43313.0,43310.0,0.54812209]
[1644581260804,0.057716,43313.0,43310.0,0.64831444]
[1644581262007,0.00070343,43314.0,43310.0,0.64831444]
[1644581263006,0.00070343,43314.0,43310.0,0.25970535]
[1644581263007,0.37315,43314.0,43310.0,0.25970535]
[1644581263206,0.37385342,43314.0,43311.0,0.057717]
[1644581263405,0.37385342,43314.0,43312.0,0.0518]
[1644581263606,0.37385342,43314.0,43312.0,0.167236]
[1644581263808,0.37385342,43314.0,43312.0,0.217236]
[1644581264049,0.43156946,43314.0,43312.0,0.217236]
[1644581264251,0.3029978,43313.0,43312.0,0.217236]
[1644581264651,0.3029978,43313.0,43312.0,0.165436]
[1644581264852,0.43086604,43314.0,43312.0,0.165436]
[1644581265451,0.23086604,43314.0,43312.0,0.11562835]
[1644581265651,0.43086604,43314.0,43312.0,0.11562835]
[1644581266052,0.23086604,43314.0,43312.0,0.11562835]
[1644581266271,0.23086604,43314.0,43313.0,0.0518]
[1644581266453,0.23086604,43314.0,43312.0,0.34562835]
[1644581266653,0.115434,43314.0,43312.0,0.34562835]
[1644581266853,0.05771,43315.0,43312.0,0.70611782]
[1644581266854,0.00051648,43315.0,43312.0,0.70611782]
[1644581267053,0.00051648,43315.0,43312.0,0.85611782]
[1644581267257,0.00051648,43315.0,43313.0,0.0462]
[1644581267455,0.90181298,43328.0,43313.0,0.05198483]
[1644581267710,0.90181298,43328.0,43316.0,0.4]
[1644581267711,0.6234,43328.0,43316.0,0.4]
[1644581267902,0.6234,43328.0,43318.0,0.115398]
[1644581268101,0.6234,43328.0,43319.0,0.48670105]
[1644581268303,2.11712691,43329.0,43323.0,0.40548134]
[1644581268503,2.11712691,43329.0,43324.0,0.0462]
[1644581269500,2.11712691,43329.0,43324.0,0.103894]
[1644581269701,0.3293749,43329.0,43324.0,0.21158079]
[1644581269901,0.3293749,43329.0,43327.0,0.5774]
[1644581269902,0.07368901,43329.0,43327.0,0.5774]
[1644581270101,0.07368901,43329.0,43328.0,0.0462]
[1644581270303,0.10025394,43333.0,43328.0,0.0462]
[1644581270505,0.1,43333.0,43331.0,0.4]
[1644581270700,0.1,43333.0,43332.0,0.103885]
[1644581272048,0.1,43333.0,43332.0,0.503885]
[1644581272450,0.1,43333.0,43332.0,0.603885]
[1644581273054,0.1,43333.0,43332.0,0.203885]
[1644581273251,0.1,43333.0,43332.0,0.103885]
[1644581273453,0.3,43333.0,43332.0,0.103885]
[1644581273751,0.1,43333.0,43332.0,0.103885]
[1644581274552,0.1,43333.0,43332.0,0.153885]
[1644581276499,0.09985,43333.0,43332.0,0.54819259]
[1644581276699,0.09985,43333.0,43332.0,0.48999259]
[1644581277004,0.09985,43333.0,43332.0,0.63999259]
[1644581277200,0.09985,43333.0,43332.0,1.043514]
[1644581278000,0.09985,43333.0,43332.0,1.273514]
[1644581279450,0.00025394,43334.0,43332.0,1.273514]
[1644581279651,0.00070502,43335.0,43333.0,0.45033411]
[1644581279850,0.00025394,43334.0,43333.0,0.55033411]
[1644581280048,0.00025394,43335.0,43334.0,0.0462]
[1644581280249,0.00025394,43336.0,43335.0,0.057679]
[1644581280448,0.115358,43341.0,43335.0,0.50042853]
[1644581280449,0.00025394,43340.0,43335.0,0.50042853]
[1644581280650,0.057679,43337.0,43335.0,0.50042853]
[1644581280853,0.057679,43337.0,43335.0,0.65042853]
[1644581281450,0.057679,43337.0,43336.0,0.38762698]
[1644581281650,0.057679,43337.0,43336.0,0.43382698]
[1644581281851,0.057679,43337.0,43336.0,0.53382698]
[1644581283304,0.05450362,43337.0,43336.0,0.53382698]
[1644581283512,0.173042,43348.0,43336.0,0.53382698]
[1644581283703,0.00282165,43347.0,43343.0,0.45]
[1644581283906,0.06074647,43347.0,43344.0,0.44623298]
[1644581284102,0.06074647,43347.0,43344.0,0.0462]
[1644581284303,0.06074647,43347.0,43345.0,0.2946104]
[1644581284505,0.06074647,43347.0,43346.0,0.0462]
[1644581284703,0.05767,43347.0,43346.0,0.43122234]
[1644581285002,0.05767,43347.0,43346.0,0.53122234]
[1644581285403,0.25767,43347.0,43346.0,0.53122234]
[1644581285604,0.25767,43347.0,43346.0,0.1462]
[1644581286008,0.25767,43347.0,43346.0,0.0462]
[1644581286450,0.05767,43347.0,43346.0,0.0462]
[1644581286850,0.05767,43347.0,43346.0,0.43047778]
[1644581287251,0.05767,43347.0,43346.0,0.1462]
[1644581288252,0.05767,43347.0,43346.0,0.0462]
[1644581289053,0.00025482,43348.0,43347.0,0.057661]
[1644581289253,0.06836757,43349.0,43347.0,0.103861]
[1644581289456,0.06766,43349.0,43347.0,0.103861]
[1644581289653,0.06766,43349.0,43347.0,0.153861]
[1644581289853,0.06791482,43349.0,43347.0,0.153861]
[1644581290053,0.05,43348.0,43347.0,0.153861]
[1644581290896,0.06791482,43349.0,43347.0,0.153861]
[1644581293198,0.01262629,43349.0,43347.0,0.153861]
[1644581293399,0.00070756,43350.0,43347.0,0.153861]
[1644581293599,0.00070756,43350.0,43347.0,0.731261]
[1644581293802,0.00070756,43350.0,43347.0,1.019461]
[1644581294055,0.02,43354.0,43349.0,0.057653]
[1644581294255,0.02,43354.0,43347.0,0.9618]
[1644581294256,0.077653,43354.0,43353.0,0.81642135]
[1644581294457,0.077653,43354.0,43353.0,0.86262135]
[1644581294458,0.02,43354.0,43353.0,0.86262135]
[1644581294656,0.02,43354.0,43353.0,1.03663499]
[1644581295257,0.02,43354.0,43353.0,1.09428899]
[1644581295658,0.28309106,43354.0,43353.0,0.72786764]
[1644581295858,0.33309106,43354.0,43353.0,0.103854]
[1644581296057,0.07,43354.0,43353.0,0.0462]
[1644581296257,0.657671,43353.0,43346.0,0.23]
[1644581296463,0.2,43352.0,43347.0,0.0462]
[1644581296856,0.2,43352.0,43351.0,0.115341]
[1644581296857,0.25837776,43352.0,43351.0,0.115341]
[1644581297257,0.05837776,43352.0,43351.0,0.115341]
[1644581297747,0.25837776,43352.0,43351.0,0.115341]
[1644581297920,0.2,43352.0,43351.0,0.115341]
[1644581298522,0.92067742,43353.0,43351.0,0.115341]
[1644581299222,0.657671,43353.0,43351.0,0.115341]
[1644581300024,0.195,43352.0,43351.0,0.115341]
[1644581300425,0.44581636,43352.0,43351.0,0.115341]
[1644581301224,0.51050859,43352.0,43351.0,0.115341]
[1644581301753,0.51050859,43352.0,43351.0,0.10713373]
[1644581302151,0.44581636,43352.0,43351.0,0.10713373]
[1644581303055,0.44581636,43352.0,43351.0,0.04583373]
[1644581303453,0.52959246,43352.0,43351.0,0.04583373]
[1644581303861,0.98093178,43352.0,43351.0,3.73e-06]
[1644581304154,0.57959246,43352.0,43351.0,3.73e-06]
[1644581304360,0.38008415,43351.0,43346.0,0.23]
[1644581304555,0.195,43348.0,43346.0,0.23]